bitfinex-derivatives/quotes_BTCF0:USTF0_20241208
["timestamp","ask_amount","ask_price","bid_price","bid_amount"]
[1733647253908,0.05636851,99263.0,99262.0,0.0641124]
[1733647254704,0.05636851,99263.0,99262.0,0.04567486]
[1733647254900,0.05636851,99263.0,99262.0,0.06411406]
[1733647256108,0.05636851,99263.0,99262.0,0.01448093]
[1733647258400,0.05536851,99263.0,99262.0,0.01448093]
[1733647258603,0.05636851,99263.0,99262.0,0.01448093]
[1733647261014,0.05636851,99263.0,99262.0,0.01448121]
[1733647261800,0.05536851,99263.0,99262.0,0.01448121]
[1733647262005,0.05636851,99263.0,99262.0,0.01448121]
[1733647263110,0.05636851,99263.0,99262.0,0.01485386]
[1733647264109,0.01106451,99263.0,99262.0,0.045305]
[1733647264303,0.001,99263.0,99262.0,0.24060008]
[1733647264514,0.36640001,99279.0,99262.0,0.24060008]
[1733647264515,0.11938641,99277.0,99274.0,0.045299]
[1733647264702,0.045299,99275.0,99274.0,0.045299]
[1733647264909,0.045299,99275.0,99274.0,0.04844679]
[1733647265109,0.045299,99275.0,99274.0,0.00314779]
[1733647265411,0.045299,99275.0,99274.0,0.01447973]
[1733647266314,0.049299,99275.0,99274.0,0.01447973]
[1733647267510,0.0453,99271.0,99270.0,0.18081386]
[1733647267712,0.0453,99271.0,99270.0,0.23989773]
[1733647267913,0.0453,99271.0,99270.0,0.05908387]
[1733647268105,0.0453,99271.0,99270.0,0.24010681]
[1733647268311,0.0453,99271.0,99270.0,0.05908387]
[1733647269113,0.0483,99271.0,99270.0,0.05908387]
[1733647269823,0.0483,99271.0,99270.0,0.45331731]
[1733647269824,0.003,99271.0,99270.0,0.45331731]
[1733647270416,0.003,99271.0,99270.0,0.46514118]
[1733647270715,0.0483,99271.0,99270.0,0.46513866]
[1733647270917,0.0483,99271.0,99270.0,0.41983766]
[1733647271223,0.0483,99271.0,99270.0,0.24006435]
[1733647271419,0.0483,99271.0,99270.0,0.06298967]
[1733647271621,0.0473,99271.0,99270.0,0.06298967]
[1733647271820,0.0473,99271.0,99270.0,0.24402379]
[1733647272015,0.0473,99271.0,99270.0,0.28932479]
[1733647272213,0.0463,99271.0,99270.0,0.28932059]
[1733647272623,0.0463,99271.0,99270.0,0.10829067]
[1733647273121,0.0453,99271.0,99270.0,0.10829067]
[1733647273325,0.001,99271.0,99270.0,0.10829067]
[1733647274009,0.001,99271.0,99270.0,0.09381101]
[1733647274211,0.001,99271.0,99270.0,0.10829054]
[1733647274415,0.001,99271.0,99270.0,0.07555641]
[1733647274713,0.01008792,99272.0,99270.0,0.06299178]
[1733647274917,0.045298,99276.0,99271.0,0.06299178]
[1733647275123,0.045299,99274.0,99273.0,0.22632638]
[1733647275318,0.045299,99274.0,99273.0,0.24080591]
[1733647276420,0.045299,99274.0,99273.0,0.01447953]
[1733647276616,0.048299,99274.0,99273.0,0.01447953]
[1733647277413,0.048299,99274.0,99268.0,0.045302]
[1733647277414,0.045301,99270.0,99269.0,0.18102738]
[1733647277720,0.045301,99270.0,99269.0,0.24412332]
[1733647278321,0.045301,99270.0,99269.0,0.03035934]
[1733647278626,0.046301,99270.0,99269.0,0.01447966]
[1733647278831,0.046301,99270.0,99269.0,0.01547966]
[1733647279215,0.046301,99270.0,99269.0,0.01447966]
[1733647279426,0.046301,99270.0,99269.0,0.01547966]
[1733647279826,0.046301,99270.0,99269.0,0.01447966]
[1733647280828,0.001,99270.0,99264.0,0.045304]
[1733647281023,0.045303,99266.0,99265.0,0.05578233]
[1733647281332,0.045303,99266.0,99265.0,0.0472176]
[1733647282631,0.045303,99266.0,99265.0,0.0482176]
[1733647282819,0.16480566,99266.0,99265.0,0.0492176]
[1733647283018,0.16480566,99266.0,99265.0,0.0495909]
[1733647283425,0.16480566,99266.0,99265.0,0.04959092]
[1733647283821,0.16480566,99266.0,99265.0,0.01648006]
[1733647284031,0.045303,99266.0,99265.0,0.01648006]
[1733647284231,0.045303,99266.0,99265.0,0.01648068]
[1733647285427,0.045303,99266.0,99265.0,0.01548068]
[1733647285632,0.0554413,99266.0,99265.0,0.01448068]
[1733647285824,0.0554413,99266.0,99265.0,0.01548068]
[1733647287322,0.17494939,99266.0,99265.0,0.01548068]
[1733647287927,0.17494939,99266.0,99265.0,0.01548117]
[1733647288123,0.0554413,99266.0,99265.0,0.01548117]
[1733647288327,0.17494939,99266.0,99265.0,0.01548117]
[1733647289528,0.17494939,99266.0,99265.0,0.01448117]
[1733647289738,0.17494939,99266.0,99265.0,0.01548117]
[1733647291840,0.0554413,99266.0,99265.0,0.01548117]
[1733647292338,0.0554413,99266.0,99265.0,0.28624266]
[1733647292339,0.0101383,99266.0,99265.0,0.28624266]
[1733647292637,0.045302,99267.0,99265.0,0.06078417]
[1733647292936,0.045302,99267.0,99266.0,0.01448117]
[1733647293330,0.406102,99267.0,99266.0,0.01448117]
[1733647293632,0.045302,99267.0,99266.0,0.01448117]
[1733647294137,0.05561245,99267.0,99266.0,0.01548086]
[1733647298229,0.17512054,99267.0,99266.0,0.01548086]
[1733647298728,0.05561245,99267.0,99266.0,0.01548086]
[1733647300136,0.17512054,99267.0,99266.0,0.01548086]
[1733647301432,0.05561245,99267.0,99266.0,0.01548086]
[1733647305044,0.05561245,99267.0,99266.0,0.01548081]
[1733647305242,0.17512054,99267.0,99266.0,0.01548081]
[1733647307133,0.05561245,99267.0,99266.0,0.01548081]
[1733647307931,0.12989633,99267.0,99266.0,0.24197842]
[1733647308132,0.14923301,99276.0,99266.0,0.28959072]
[1733647308337,0.14923301,99277.0,99274.0,0.18158817]
[1733647308543,0.14923301,99277.0,99275.0,0.01448081]
[1733647308735,0.14923301,99277.0,99276.0,0.05977881]
[1733647309038,0.3608,99283.0,99276.0,0.05977881]
[1733647309039,0.14923301,99279.0,99278.0,0.045297]
[1733647309227,0.14923301,99279.0,99278.0,0.05977781]
[1733647309629,0.14923301,99281.0,99280.0,0.045296]
[1733647309833,0.371017,99283.0,99281.0,0.045296]
[1733647309834,0.04896131,99282.0,99281.0,0.045296]
[1733647310129,0.371017,99283.0,99282.0,0.045295]
[1733647310335,0.371017,99283.0,99282.0,0.05977581]
[1733647310745,0.010217,99283.0,99282.0,0.05977581]
[1733647311048,0.045293,99287.0,99282.0,0.24098497]
[1733647311240,0.045293,99287.0,99283.0,0.01448081]
[1733647311444,0.045293,99287.0,99284.0,0.01448081]
[1733647311641,0.045293,99287.0,99285.0,0.01448081]
[1733647311943,0.045293,99287.0,99286.0,0.01448081]
[1733647312352,0.045293,99287.0,99286.0,0.05977481]
[1733647312544,0.006,99287.0,99286.0,0.05977481]
[1733647313047,0.045291,99292.0,99286.0,0.05977481]
[1733647313344,0.007,99287.0,99286.0,0.045294]
[1733647313535,0.007,99287.0,99286.0,0.05977204]
[1733647313734,0.011,99287.0,99286.0,0.05977204]
[1733647314142,0.011,99287.0,99286.0,0.045294]
[1733647314336,0.011,99287.0,99286.0,0.05977204]
[1733647314747,0.011,99287.0,99286.0,0.06014505]
[1733647315045,0.004,99287.0,99286.0,0.05977204]
[1733647315245,0.004,99287.0,99286.0,0.06014499]
[1733647315743,0.011,99287.0,99286.0,0.06014499]
[1733647315933,0.011,99287.0,99286.0,0.05977204]
[1733647317541,0.011,99287.0,99286.0,0.05032984]
[1733647317746,0.011,99287.0,99286.0,0.05977206]
[1733647320844,0.011,99287.0,99286.0,0.06014493]
[1733647321049,0.011,99287.0,99286.0,0.09250329]
[1733647321746,0.011,99287.0,99286.0,0.1039927]
[1733647324854,0.011,99287.0,99286.0,0.02596747]
[1733647325053,0.011,99287.0,99286.0,0.01447806]
[1733647325956,0.0432,99287.0,99286.0,0.01447806]
[1733647326250,0.0764,99287.0,99286.0,0.01447806]
[1733647326455,0.0764,99287.0,99273.0,0.3608]
[1733647326645,0.12764008,99283.0,99282.0,0.00037276]
[1733647326950,0.12764008,99283.0,99282.0,0.01485109]
[1733647326951,0.045295,99283.0,99282.0,0.01485109]
[1733647327153,0.045295,99283.0,99282.0,0.01447833]
[1733647327348,0.3608,99285.0,99282.0,0.01447999]
[1733647327349,0.045295,99284.0,99282.0,0.01447999]
[1733647327556,0.045295,99284.0,99283.0,0.00314782]
[1733647327746,0.045295,99284.0,99283.0,0.01447999]
[1733647329159,0.048295,99284.0,99283.0,0.01447999]
[1733647329347,0.053295,99284.0,99283.0,0.01447999]
[1733647329952,0.053295,99284.0,99271.0,0.0453]
[1733647329953,0.0453,99272.0,99271.0,0.0453]
[1733647330254,0.0453,99272.0,99271.0,0.05877574]
[1733647330460,0.0453,99272.0,99271.0,0.01447971]
[1733647331343,0.0463,99272.0,99271.0,0.01447971]
[1733647333250,0.0463,99272.0,99271.0,0.01485361]
[1733647333660,0.0463,99272.0,99271.0,0.01485363]
[1733647334157,0.0463,99272.0,99271.0,0.01448066]
[1733647334956,0.0463,99272.0,99271.0,0.01485363]
[1733647335148,0.0463,99272.0,99271.0,0.01448066]
[1733647335553,0.001,99272.0,99262.0,0.045304]
[1733647335753,0.07496121,99272.0,99269.0,0.0003729]
[1733647335946,0.045301,99270.0,99269.0,0.0003729]
[1733647336154,0.045301,99269.0,99268.0,0.0003729]
[1733647336353,0.01114117,99272.0,99262.0,0.045304]
[1733647336557,0.07496121,99272.0,99269.0,0.00037294]
[1733647336758,0.01114117,99272.0,99269.0,0.00037294]
[1733647336955,0.01114117,99272.0,99257.0,0.0327]
[1733647336956,0.01114117,99272.0,99267.0,0.00037294]
[1733647337160,0.01114117,99272.0,99263.0,0.045304]
[1733647337357,0.01114117,99272.0,99268.0,0.00037291]
[1733647337560,0.045302,99268.0,99264.0,0.00037291]
[1733647338156,0.045302,99267.0,99264.0,0.04567691]
[1733647338464,0.045302,99267.0,99264.0,0.045304]
[1733647338867,0.045302,99267.0,99265.0,0.04436188]
[1733647339169,0.045302,99267.0,99264.0,0.045304]
[1733647339361,0.045302,99267.0,99265.0,0.04434312]
[1733647339561,0.045302,99267.0,99264.0,0.047304]
[1733647339758,0.045302,99267.0,99265.0,0.04434236]
[1733647340069,0.3707015,99277.0,99266.0,0.08964112]
[1733647340262,0.045298,99276.0,99275.0,0.00037294]
[1733647340466,0.045302,99269.0,99266.0,0.045303]
[1733647340658,0.045302,99269.0,99267.0,0.04432036]
[1733647340860,0.045302,99269.0,99268.0,0.04432036]
[1733647341260,0.045302,99269.0,99266.0,0.045303]
[1733647341463,0.3707015,99277.0,99266.0,0.045303]
[1733647341464,0.045302,99268.0,99267.0,0.04432183]
[1733647342865,0.045302,99268.0,99267.0,0.04532183]
[1733647343266,0.045302,99268.0,99267.0,0.001]
[1733647343474,0.045302,99268.0,99267.0,0.00729585]
[1733647343677,1.545302,99268.0,99267.0,0.00729585]
[1733647344168,0.045302,99268.0,99267.0,0.00729585]
[1733647345671,0.045302,99268.0,99267.0,0.01233268]
[1733647346755,0.045302,99268.0,99267.0,0.01233287]
[1733647346958,0.045302,99268.0,99267.0,0.001]
[1733647347164,0.045302,99268.0,99267.0,0.01233287]
[1733647347565,0.045302,99268.0,99267.0,0.01548089]
[1733647349970,0.406102,99268.0,99267.0,0.01548089]
[1733647352966,0.406102,99268.0,99267.0,0.01585369]
[1733647353271,0.406102,99268.0,99267.0,0.01548089]
[1733647353579,0.406102,99268.0,99267.0,0.01548186]
[1733647356363,0.55559447,99268.0,99267.0,0.01548186]
[1733647360370,0.19479447,99268.0,99267.0,0.01548186]
[1733647360564,0.19479447,99268.0,99250.0,1.0]
[1733647360565,0.045306,99258.0,99256.0,0.18078772]
[1733647360869,0.045307,99256.0,99255.0,0.18078772]
[1733647361068,0.02263875,99256.0,99255.0,0.18078772]
[1733647361373,0.02263875,99256.0,99254.0,0.18078772]
[1733647362264,0.02263875,99256.0,99250.0,1.00056]
[1733647362265,0.045307,99257.0,99255.0,0.18078772]
[1733647362470,0.045307,99257.0,99256.0,0.13125054]
[1733647362665,0.001,99256.0,99250.0,0.97104536]
[1733647362871,0.04531,99251.0,99250.0,0.86791536]
[1733647363071,0.19478227,99251.0,99250.0,0.86791536]
[1733647363265,0.09428263,99251.0,99250.0,0.64505636]
[1733647364263,0.09428263,99251.0,99248.0,0.00172048]
[1733647364264,0.0942868,99251.0,99248.0,0.00172048]
[1733647364467,0.04532,99228.0,99219.0,0.24288395]
[1733647364666,0.7216,99228.0,99219.0,0.00151179]
[1733647364888,0.406124,99220.0,99219.0,0.00151179]
[1733647365069,0.3608,99220.0,99217.0,0.00178004]
[1733647365273,0.06382004,99230.0,99224.0,0.045322]
[1733647365469,0.045319,99232.0,99217.0,0.36258004]
[1733647365677,0.06382004,99230.0,99218.0,0.04440523]
[1733647365976,0.06382004,99230.0,99217.0,0.36258004]
[1733647365977,0.06382004,99230.0,99224.0,0.045322]
[1733647366180,0.06382004,99230.0,99225.0,0.04440523]
[1733647366372,0.08949974,99227.0,99224.0,0.045322]
[1733647366566,0.08949974,99227.0,99225.0,0.01157975]
[1733647366770,0.08949974,99227.0,99218.0,0.045324]
[1733647366771,0.045321,99226.0,99218.0,0.045324]
[1733647366967,0.045321,99226.0,99219.0,0.04435875]
[1733647367173,0.045321,99226.0,99220.0,0.04435875]
[1733647367373,0.06382004,99228.0,99222.0,0.045323]
[1733647367678,0.06382004,99228.0,99223.0,0.04435875]
[1733647367975,0.08949974,99232.0,99229.0,0.045319]
[1733647368171,0.01234905,99236.0,99230.0,0.12885036]
[1733647368371,0.045316,99238.0,99231.0,0.03275036]
[1733647368565,0.045316,99238.0,99232.0,0.00629805]
[1733647368771,0.045316,99238.0,99233.0,0.00629805]
[1733647368976,0.06382004,99239.0,99234.0,0.00629805]
[1733647369179,0.06382004,99240.0,99235.0,0.00629805]
[1733647369381,0.06382004,99240.0,99230.0,0.0961]
[1733647369382,0.45029974,99242.0,99236.0,0.00629805]
[1733647369574,0.45029974,99242.0,99230.0,0.0961]
[1733647369575,0.045316,99238.0,99237.0,0.00629815]
[1733647369769,0.13481574,99238.0,99237.0,0.00629815]
[1733647369973,0.045316,99238.0,99237.0,0.00629815]
[1733647370179,0.045319,99231.0,99230.0,0.0327]
[1733647370477,0.045319,99231.0,99230.0,0.04403719]
[1733647371381,0.045319,99231.0,99230.0,0.01133719]
[1733647372579,0.045319,99231.0,99230.0,0.01448632]
[1733647372975,0.3608,99234.0,99231.0,0.045319]
[1733647373178,0.3608,99234.0,99232.0,0.01448632]
[1733647373369,0.3608,99234.0,99233.0,0.01448632]
[1733647376281,0.01250425,99235.0,99233.0,0.05980332]
[1733647376473,0.17295508,99240.0,99234.0,0.01448632]
[1733647376676,0.19460915,99256.0,99232.0,0.0323]
[1733647376677,0.08939719,99249.0,99246.0,0.045312]
[1733647376874,0.04531,99251.0,99247.0,0.07778632]
[1733647377077,0.05798457,99251.0,99248.0,0.01448632]
[1733647377284,0.05798457,99251.0,99249.0,0.01448632]
[1733647377483,0.05798457,99251.0,99250.0,0.01448632]
[1733647378679,0.01767457,99251.0,99250.0,0.01448632]
[1733647379182,0.005,99251.0,99250.0,0.01448632]
[1733647379377,0.005,99251.0,99250.0,0.04488632]
[1733647380183,0.008,99251.0,99250.0,0.04488632]
[1733647380390,0.008,99251.0,99250.0,0.0448828]
[1733647382782,0.008,99251.0,99250.0,0.0448831]
[1733647386078,0.008,99251.0,99250.0,0.0304]
[1733647386278,0.008,99251.0,99250.0,0.09019293]
[1733647387885,0.008,99251.0,99250.0,0.05979293]
[1733647388983,0.008,99251.0,99250.0,0.06016547]
[1733647389192,0.008,99251.0,99250.0,0.05979293]
[1733647389486,0.008,99251.0,99250.0,0.10398857]
[1733647391890,0.1953903,99260.0,99250.0,0.10393147]
[1733647391891,0.08939719,99257.0,99250.0,0.10393147]
[1733647392183,0.08939719,99258.0,99256.0,0.3608]
[1733647392384,0.08939719,99258.0,99257.0,0.09253327]
[1733647392589,0.08939719,99264.0,99263.0,0.045304]
[1733647392786,0.08939719,99265.0,99264.0,0.045304]
[1733647392993,0.08939719,99265.0,99264.0,0.09253027]
[1733647393194,0.13470019,99265.0,99264.0,0.01485533]
[1733647393384,0.045303,99265.0,99264.0,0.01448293]
[1733647393780,0.11935462,99268.0,99264.0,0.01448293]
[1733647393985,0.11935462,99268.0,99260.0,0.0003724]
[1733647393986,0.11925162,99267.0,99265.0,0.05978593]
[1733647394186,0.000103,99268.0,99266.0,0.05978593]
[1733647394385,0.000103,99268.0,99267.0,0.01448293]
[1733647394593,0.000103,99268.0,99267.0,0.05978493]
[1733647394903,0.11934814,99268.0,99267.0,0.05978493]
[1733647395092,0.000103,99268.0,99267.0,0.42058493]
[1733647396183,0.000103,99268.0,99267.0,0.42158493]
[1733647396387,0.006103,99268.0,99267.0,0.42158493]
[1733647396594,0.015103,99268.0,99267.0,0.45532265]
[1733647397499,0.015103,99268.0,99267.0,0.46659199]
[1733647398199,0.09442373,99283.0,99281.0,0.045296]
[1733647398397,0.08942373,99286.0,99282.0,0.40802065]
[1733647398599,0.18306518,99290.0,99282.0,0.40802065]
[1733647398600,0.08942373,99287.0,99285.0,0.045294]
[1733647398896,0.08942373,99287.0,99286.0,0.04721444]
[1733647399200,0.09392004,99295.0,99286.0,0.03283553]
[1733647399201,0.11964524,99295.0,99286.0,0.03283553]
[1733647399401,0.03022151,99295.0,99287.0,0.05347585]
[1733647399702,0.03022151,99295.0,99291.0,0.045291]
[1733647399895,0.03022151,99295.0,99292.0,0.01447735]
[1733647399896,0.04529,99294.0,99292.0,0.01447735]
[1733647400089,0.04529,99294.0,99286.0,0.00010402]
[1733647400090,0.04529,99294.0,99293.0,0.01447735]
[1733647400498,0.13465494,99294.0,99293.0,0.00818285]
[1733647400900,0.14365494,99294.0,99293.0,0.00818285]
[1733647401994,0.05429,99294.0,99293.0,0.00818285]
[1733647402389,0.05429,99294.0,99293.0,0.00918285]
[1733647403096,0.09834378,99294.0,99293.0,0.05447285]
[1733647403292,0.009,99294.0,99293.0,0.05447285]
[1733647403489,0.015,99294.0,99293.0,0.05547285]
[1733647404207,0.015,99294.0,99293.0,0.06176749]
[1733647406195,0.015,99294.0,99293.0,0.09449814]
[1733647406399,0.10435767,99294.0,99293.0,0.09449695]
[1733647406797,0.015,99294.0,99293.0,0.09449695]
[1733647408205,0.009,99294.0,99293.0,0.09349695]
[1733647408405,0.014,99294.0,99293.0,0.09349695]
[1733647408904,0.014,99294.0,99293.0,0.04629]
[1733647409101,0.005,99294.0,99293.0,0.04529]
[1733647409296,0.013,99294.0,99293.0,0.04629]
[1733647409894,0.013,99294.0,99293.0,0.09349244]
[1733647410599,0.013,99294.0,99293.0,0.05447175]
[1733647411001,0.013,99294.0,99293.0,0.0934957]
[1733647411204,0.013,99294.0,99293.0,0.06076601]
[1733647411805,0.013,99294.0,99293.0,0.09349598]
[1733647412008,0.10229768,99294.0,99293.0,0.09349598]
[1733647412411,0.013,99294.0,99293.0,0.09349598]
[1733647413411,0.013,99294.0,99293.0,0.06076601]
[1733647413712,0.013,99294.0,99293.0,0.06643103]
[1733647413912,0.013,99294.0,99293.0,0.04629]
[1733647414211,0.013,99294.0,99293.0,0.09349552]
[1733647417109,0.013,99294.0,99293.0,0.04820552]
[1733647417309,0.05829,99294.0,99293.0,0.01547635]
[1733647417509,0.09159,99294.0,99293.0,0.01547635]
[1733647418013,0.0463,99294.0,99293.0,0.01547635]
[1733647418513,0.13560832,99294.0,99293.0,0.01547635]
[1733647419221,0.13560832,99294.0,99293.0,0.06076635]
[1733647419511,0.0463,99294.0,99293.0,0.06076635]
[1733647420218,0.013,99294.0,99293.0,0.06076635]
[1733647420512,0.013,99294.0,99293.0,0.09349541]
[1733647420811,0.45023908,99303.0,99302.0,0.045286]
[1733647420812,0.3608,99303.0,99302.0,0.045286]
[1733647421117,0.3608,99303.0,99302.0,0.09248952]
[1733647421713,0.14882726,99305.0,99304.0,0.045285]
[1733647421915,0.18062726,99306.0,99304.0,0.09248852]
[1733647422110,0.0318,99306.0,99305.0,0.01447631]
[1733647422911,0.08074239,99306.0,99305.0,0.01447631]
[1733647423110,0.08574239,99306.0,99305.0,0.01447631]
[1733647423710,0.18102363,99306.0,99305.0,0.03272527]
[1733647423912,0.08574159,99306.0,99305.0,0.0471999]
[1733647424112,0.08874159,99306.0,99305.0,0.03461354]
[1733647424317,0.08874159,99306.0,99305.0,0.04720035]
[1733647427312,0.15735421,99306.0,99305.0,0.04720033]
[1733647427506,0.15735421,99306.0,99305.0,0.07790033]
[1733647427507,0.008,99306.0,99305.0,0.07790033]
[1733647428315,0.005,99306.0,99305.0,0.07790033]
[1733647428516,0.007,99306.0,99305.0,0.07790033]
[1733647428823,0.10676637,99308.0,99306.0,0.045285]
[1733647429014,0.10676637,99308.0,99307.0,0.41743964]
[1733647429222,0.22753082,99314.0,99307.0,0.41743964]
[1733647429223,0.26819331,99314.0,99307.0,0.41743964]
[1733647429417,0.0896006,99314.0,99313.0,0.045281]
[1733647429619,0.0896006,99315.0,99313.0,0.05975563]
[1733647429922,0.0896006,99315.0,99314.0,0.01447463]
[1733647431014,0.0956006,99315.0,99314.0,0.01447463]
[1733647431513,0.0896006,99315.0,99314.0,0.01447463]
[1733647431825,0.0896006,99315.0,99314.0,0.01547463]
[1733647431826,0.0996006,99315.0,99314.0,0.01547463]
[1733647432117,0.01,99315.0,99314.0,0.01547463]
[1733647432322,0.01,99315.0,99314.0,0.04819821]
[1733647433019,0.09959935,99315.0,99314.0,0.04819821]
[1733647433615,0.01,99315.0,99314.0,0.04819821]
[1733647434016,0.09959935,99315.0,99314.0,0.04819821]
[1733647434211,0.09959935,99315.0,99314.0,0.04819773]
[1733647435728,0.01,99315.0,99314.0,0.04819773]
[1733647435932,0.09961846,99315.0,99314.0,0.04819773]
[1733647436119,0.07696424,99315.0,99314.0,0.04819773]
[1733647436325,0.17867865,99318.0,99316.0,0.04528]
[1733647436523,0.17867865,99318.0,99317.0,0.05975463]
[1733647437024,0.04902429,99318.0,99317.0,0.06012707]
[1733647437327,0.04902429,99318.0,99317.0,0.05031465]
[1733647437630,0.05402429,99318.0,99317.0,0.0072929]
[1733647437814,0.05402429,99318.0,99317.0,0.05294532]
[1733647438220,0.18530134,99318.0,99317.0,0.0525729]
[1733647438429,0.23423969,99318.0,99317.0,0.0525729]
[1733647439322,0.05502429,99318.0,99317.0,0.0525729]
[1733647439623,0.18528158,99318.0,99317.0,0.0525729]
[1733647439835,0.23421993,99318.0,99317.0,0.0525729]
[1733647440424,0.23421993,99318.0,99317.0,0.0072929]
[1733647440621,0.10030329,99318.0,99317.0,0.0072929]
[1733647440823,0.05502429,99318.0,99317.0,0.001]
[1733647441023,0.05502429,99318.0,99317.0,0.04628]
[1733647441728,0.05502352,99318.0,99317.0,0.04628]
[1733647444327,0.00608594,99318.0,99317.0,0.04628]
[1733647445225,0.11948118,99325.0,99317.0,0.07900215]
[1733647445427,0.11948118,99330.0,99328.0,0.045275]
[1733647445730,0.0313,99339.0,99328.0,0.05156738]
[1733647445731,0.11948118,99331.0,99328.0,0.05156738]
[1733647445920,0.0313,99339.0,99328.0,0.05156738]
[1733647445921,0.11948118,99332.0,99328.0,0.08428526]
[1733647446125,0.11948118,99333.0,99328.0,0.08428526]
[1733647446327,0.11948118,99333.0,99328.0,0.05156738]
[1733647446524,0.11948118,99333.0,99332.0,0.045273]
[1733647446827,0.11948118,99333.0,99332.0,0.05156538]
[1733647447027,0.11948118,99335.0,99334.0,0.045272]
[1733647447333,0.11948118,99338.0,99337.0,0.04527]
[1733647447534,8.738e-05,99341.0,99337.0,0.01132562]
[1733647447738,8.738e-05,99341.0,99339.0,0.0003725]
[1733647447939,8.738e-05,99341.0,99340.0,0.01132562]
[1733647448837,8.738e-05,99341.0,99340.0,0.05659462]
[1733647449333,0.11955776,99341.0,99340.0,0.05759462]
[1733647449639,0.11955776,99341.0,99340.0,0.06074033]
[1733647450042,0.11955776,99341.0,99340.0,0.05256038]
[1733647450240,8.738e-05,99341.0,99340.0,0.06111164]
[1733647450445,8.738e-05,99341.0,99340.0,0.06073917]
[1733647451939,8.738e-05,99341.0,99340.0,0.10577341]
[1733647452149,8.738e-05,99341.0,99340.0,0.09357614]
[1733647453239,0.005,99354.0,99353.0,0.045263]
[1733647453440,0.11947038,99357.0,99356.0,0.045262]
[1733647453640,0.11947038,99357.0,99356.0,0.01447017]
[1733647453641,0.3608,99357.0,99356.0,0.01447017]
[1733647453945,0.3608,99357.0,99340.0,0.00012356]
[1733647453946,0.045262,99356.0,99344.0,0.00037203]
[1733647454239,0.406066,99346.0,99345.0,0.00037203]
[1733647454440,0.406066,99346.0,99344.0,0.00037225]
[1733647454647,0.0308,99345.0,99340.0,0.00012356]
[1733647454837,0.045268,99343.0,99341.0,0.03271255]
[1733647455046,0.15020973,99345.0,99340.0,0.00012356]
[1733647455240,0.045268,99342.0,99340.0,0.00012356]
[1733647456352,0.0308,99345.0,99343.0,0.045267]
[1733647457252,0.076067,99345.0,99343.0,0.045267]
[1733647457858,0.045273,99332.0,99331.0,0.00012356]
[1733647458167,0.04528,99317.0,99316.0,0.00151018]
[1733647458458,0.04528,99317.0,99316.0,0.03422785]
[1733647458750,0.045283,99309.0,99308.0,0.045284]
[1733647458952,0.09422135,99309.0,99308.0,0.0453978]
[1733647459156,0.27329836,99309.0,99308.0,0.0453978]
[1733647459457,0.27329836,99309.0,99308.0,0.0001138]
[1733647459660,0.27327403,99309.0,99308.0,0.0001138]
[1733647460456,0.09422135,99309.0,99308.0,0.0001138]
[1733647460756,0.09422135,99309.0,99308.0,0.0021138]
[1733647461257,0.09422135,99309.0,99308.0,0.0061138]
[1733647461758,0.09422135,99309.0,99308.0,0.0041138]
[1733647462258,0.09422135,99309.0,99308.0,0.0011138]
[1733647462451,0.09422135,99309.0,99308.0,0.0031138]
[1733647463155,0.09422135,99309.0,99308.0,0.0011138]
[1733647463459,0.27315851,99309.0,99308.0,0.0011138]
[1733647464060,0.27315851,99309.0,99308.0,0.00614876]
[1733647464554,0.27315851,99309.0,99308.0,0.00514876]
[1733647464750,0.27316471,99309.0,99308.0,0.00514876]
[1733647465550,0.09422755,99309.0,99308.0,0.00514876]
[1733647465753,0.09422755,99309.0,99308.0,0.0001138]
[1733647466448,0.045283,99309.0,99308.0,0.0001138]
[1733647466858,0.045283,99309.0,99308.0,0.01458935]
[1733647467159,0.045283,99309.0,99308.0,0.01447555]
[1733647467457,0.045289,99296.0,99280.0,0.00151077]
[1733647467652,0.406096,99281.0,99280.0,0.00151077]
[1733647467851,0.045304,99263.0,99261.0,0.0315]
[1733647468051,0.3608,99268.0,99262.0,0.01096013]
[1733647468357,0.3608,99268.0,99263.0,9.867e-05]
[1733647468358,0.045304,99264.0,99263.0,9.867e-05]
[1733647468659,0.02264353,99264.0,99263.0,9.867e-05]
[1733647470755,0.02264353,99264.0,99263.0,0.01269105]
[1733647470955,0.02264353,99264.0,99263.0,0.01269094]
[1733647471260,0.02264353,99264.0,99263.0,0.00709867]
[1733647471853,0.02264353,99264.0,99263.0,0.01969101]
[1733647472046,0.02264353,99264.0,99263.0,0.01009867]
[1733647472455,0.02264353,99264.0,99263.0,0.02269111]
[1733647472757,0.02264353,99264.0,99263.0,0.01009867]
[1733647473269,0.02264353,99264.0,99263.0,0.02269105]
[1733647473458,0.02264353,99264.0,99263.0,0.01009867]
[1733647474155,0.02264353,99264.0,99263.0,0.02269102]
[1733647474966,0.02264353,99264.0,99263.0,0.02269079]
[1733647475351,0.02264353,99264.0,99263.0,0.02898692]
[1733647477264,0.02264353,99264.0,99263.0,0.03402382]
[1733647477862,0.02264353,99264.0,99263.0,0.0214317]
[1733647478166,0.02264353,99264.0,99263.0,0.02143203]
[1733647479358,0.02264353,99264.0,99263.0,0.02458019]
[1733647481565,0.02264353,99264.0,99263.0,0.01828389]
[1733647481872,0.02264353,99264.0,99263.0,0.02458022]
[1733647483371,0.02264353,99264.0,99263.0,0.02495043]
[1733647484169,0.02264353,99264.0,99263.0,0.02458022]
[1733647488472,0.02264353,99264.0,99263.0,0.02158022]
[1733647488772,0.02264353,99264.0,99263.0,0.02258022]
[1733647489270,0.3608,99268.0,99263.0,0.02258022]
[1733647489572,0.045303,99265.0,99264.0,0.01448155]
[1733647492366,0.045303,99265.0,99264.0,0.01448165]
[1733647493170,0.045303,99265.0,99264.0,0.01548165]
[1733647493773,0.045303,99265.0,99264.0,0.01448165]
[1733647497272,0.045303,99265.0,99264.0,0.0239267]
[1733647497473,0.09427088,99265.0,99264.0,0.0239267]
[1733647497672,0.04896788,99265.0,99264.0,0.0239267]
[1733647497878,0.045303,99265.0,99264.0,0.01448165]
[1733647498277,0.09427088,99265.0,99264.0,0.02392658]
[1733647499186,0.09427088,99265.0,99264.0,0.02492658]
[1733647499680,0.045303,99265.0,99264.0,0.02392658]
[1733647499879,0.045303,99265.0,99264.0,0.02492658]
[1733647500396,0.0101,99270.0,99268.0,0.045302]
[1733647500577,0.045301,99271.0,99269.0,0.2272708]
[1733647500775,0.045301,99271.0,99270.0,0.1956708]
[1733647501186,0.24688183,99274.0,99270.0,0.02392544]
[1733647501387,0.09728958,99274.0,99271.0,0.02392544]